bitfinex/quotes_ETHUSD_20250422
["timestamp","ask_amount","ask_price","bid_price","bid_amount"]
[1745302807567,6.33593106,1578.3,1578.2,8.99366601]
[1745302807768,6.33593106,1578.3,1578.2,5.343]
[1745302809092,6.33552965,1578.4,1578.2,5.343]
[1745302809585,13.4559474,1578.5,1578.2,5.343]
[1745302810002,12.6707474,1578.5,1578.2,5.343]
[1745302810292,6.33553745,1578.4,1578.2,8.99366601]
[1745302812179,12.67080708,1578.5,1578.2,8.99366601]
[1745302812384,6.3353349,1578.5,1578.2,15.32994593]
[1745302812576,6.3353349,1578.5,1578.3,0.7865]
[1745302812772,6.3349711,1578.6,1578.4,3.65066601]
[1745302812976,6.33459821,1578.7,1578.4,3.65066601]
[1745302813281,6.33459821,1578.7,1578.4,9.98606434]
[1745302813670,6.33459821,1578.7,1578.4,3.65066601]
[1745302813894,6.33473728,1578.6,1578.4,3.65066601]
[1745302815207,12.66925823,1578.7,1578.4,3.65066601]
[1745302815405,6.33459821,1578.7,1578.4,3.65066601]
[1745302815702,12.66923014,1578.7,1578.4,3.65066601]
[1745302816405,6.33473507,1578.6,1578.4,3.65066601]
[1745302816587,12.66975107,1578.6,1578.4,3.65066601]
[1745302816787,6.33473507,1578.6,1578.4,3.65066601]
[1745302817303,6.33512828,1578.5,1578.4,3.65066601]
[1745302817675,6.33473507,1578.6,1578.4,3.65066601]
[1745302818296,6.33512828,1578.5,1578.4,3.65066601]
[1745302820041,6.33453185,1578.7,1578.4,3.65066601]
[1745302820231,6.33453185,1578.7,1578.4,9.98616282]
[1745302820394,12.66915653,1578.7,1578.4,3.65066601]
[1745302820594,6.33479903,1578.6,1578.4,3.65066601]
[1745302821302,6.33453185,1578.7,1578.4,3.65066601]
[1745302821505,12.66918014,1578.7,1578.4,3.65066601]
[1745302821821,6.33474557,1578.6,1578.4,3.65066601]
[1745302823031,12.66975489,1578.6,1578.4,3.65066601]
[1745302823232,6.33474557,1578.6,1578.4,3.65066601]
[1745302823729,12.66919654,1578.7,1578.4,3.65066601]
[1745302824024,6.33473698,1578.6,1578.4,3.65066601]
[1745302825330,6.33527571,1578.5,1578.3,0.7865]
[1745302829525,13.46498237,1578.6,1578.3,0.7865]
[1745302829950,12.66998237,1578.6,1578.3,0.7865]
[1745302830156,6.33419777,1578.8,1578.4,3.7140175]
[1745302830356,6.33446689,1578.7,1578.4,3.65066601]
[1745302831230,6.33446689,1578.7,1578.5,5.6282587]
[1745302832138,12.6691149,1578.7,1578.5,5.6282587]
[1745302833556,6.33472697,1578.6,1578.5,5.6282587]
[1745302835368,7.12946689,1578.7,1578.5,5.6282587]
[1745302835884,6.33472697,1578.6,1578.5,5.6282587]
[1745302836853,12.61346804,1578.6,1578.5,0.2872587]
[1745302837385,6.33593106,1578.3,1578.2,26.223]
[1745302837595,6.33593106,1578.3,1578.2,26.45324816]
[1745302839596,7.13072141,1578.4,1578.2,26.45324816]
[1745302839766,6.33572141,1578.4,1578.2,26.45324816]
[1745302839966,12.67153464,1578.4,1578.2,26.45324816]
[1745302840168,6.33593106,1578.3,1578.2,26.45324816]
[1745302841800,4.27732168,1578.6,1578.2,32.78942582]
[1745302842009,6.47499358,1578.6,1578.3,4.46616601]
[1745302842304,6.47499358,1578.6,1578.4,0.2338866]
[1745302842504,6.47499358,1578.6,1578.3,4.46616601]
[1745302842716,6.47499358,1578.6,1578.5,0.2338866]
[1745302843076,6.47499358,1578.6,1578.3,4.46616601]
[1745302843277,6.47499358,1578.6,1578.5,0.2338866]
[1745302843478,6.47499358,1578.6,1578.3,4.46616601]
[1745302843707,6.47499358,1578.6,1578.5,0.2338866]
[1745302843908,6.47499358,1578.6,1578.3,4.46616601]
[1745302844108,6.47499358,1578.6,1578.5,0.2338866]
[1745302844295,7.83284528,1578.6,1578.5,0.2338866]
[1745302844496,6.33546866,1578.5,1578.2,27.0385]
[1745302845278,6.33546866,1578.5,1578.2,6.1545]
[1745302848113,6.33532025,1578.5,1578.2,6.1545]
[1745302850030,6.33532025,1578.5,1578.2,12.49081438]
[1745302850329,0.14,1578.6,1578.3,9.98648717]
[1745302850545,0.14,1578.6,1578.3,3.65066601]
[1745302851203,6.47479994,1578.6,1578.3,3.65066601]
[1745302854938,6.47479994,1578.6,1578.4,5.339]
[1745302856474,0.14,1578.6,1578.4,5.339]
[1745302856639,0.14,1578.6,1578.4,6.1632]
[1745302857269,0.14,1578.6,1578.5,3.88568161]
[1745302857934,6.47472697,1578.6,1578.5,0.2350156]
[1745302858773,0.14,1578.6,1578.5,0.2350156]
[1745302862068,6.47472697,1578.6,1578.5,0.2350156]
[1745302862376,7.75563248,1578.6,1578.5,0.2350156]
[1745302862775,8.57423248,1578.6,1578.5,0.2350156]
[1745302863844,12.71155416,1578.6,1578.5,0.2350156]
[1745302877668,6.33512828,1578.5,1578.4,5.339]
[1745302878076,6.33512828,1578.5,1578.4,5.57401548]
[1745302878267,8.8732887,1578.5,1578.4,5.57401548]
[1745302882019,6.33773208,1577.9,1577.8,5.339]
[1745302882321,6.33773208,1577.9,1577.8,5.53676352]
[1745302882475,6.33773208,1577.9,1577.8,6.36196352]
[1745302891337,12.67473128,1578.0,1577.8,6.36196352]
[1745302891629,6.33730929,1578.0,1577.8,6.36196352]
[1745302892536,6.33753723,1577.9,1577.8,6.36196352]
[1745302893330,6.33753723,1577.9,1577.8,6.21196352]
[1745302894142,6.33730929,1578.0,1577.8,6.21196352]
[1745302895214,6.66603764,1578.4,1578.0,6.33681791]
[1745302895411,0.33041188,1578.4,1578.1,11.05721531]
[1745302895721,6.33515536,1578.5,1578.3,0.8003]
[1745302896234,6.33515536,1578.5,1578.4,0.20628973]
[1745302896432,6.33515536,1578.5,1578.3,0.8003]
[1745302896613,6.33515536,1578.5,1578.4,0.20628973]
[1745302896813,6.33515536,1578.5,1578.3,0.8003]
[1745302897124,6.33515536,1578.5,1578.4,0.20628973]
[1745302897503,6.33515536,1578.5,1578.3,0.8003]
[1745302897701,6.33515536,1578.5,1578.4,0.20628973]
[1745302898109,6.33575731,1578.4,1578.2,6.1403]
[1745302898807,6.33593106,1578.3,1578.2,6.1403]
[1745302899011,8.4341999,1578.3,1578.2,5.34]
[1745302899632,7.6030999,1578.3,1578.2,5.34]
[1745302901442,6.33593106,1578.3,1578.2,5.34]
[1745302902042,6.33593106,1578.3,1578.2,5.54089843]
[1745302905025,6.33593106,1578.3,1578.2,6.32829843]
[1745302908261,6.33593106,1578.3,1578.2,5.54089843]
[1745302908839,7.13153106,1578.3,1578.2,5.54089843]
[1745302909025,9.11182796,1578.3,1578.2,5.54089843]
[1745302914356,9.11182796,1578.3,1578.2,0.20089843]
[1745302914671,6.3368477,1578.1,1577.9,5.338]
[1745302914878,12.67307883,1578.2,1578.0,1.00896346]
[1745302915176,6.33642872,1578.2,1578.0,1.00896346]
[1745302915768,12.67307439,1578.2,1578.0,1.00896346]
[1745302916331,6.33673404,1578.1,1578.0,1.00896346]
[1745302917469,6.33608125,1578.3,1578.0,1.00896346]
[1745302917653,6.33633629,1578.2,1578.0,4.65962947]
[1745302918774,6.33633629,1578.2,1578.0,1.00896346]
[1745302919677,12.67234911,1578.3,1578.0,1.00896346]
[1745302919974,6.33608125,1578.3,1578.0,4.65962947]
[1745302920286,6.33636287,1578.2,1578.0,4.65962947]
[1745302920587,6.33608125,1578.3,1578.0,4.65962947]
[1745302920792,12.67228606,1578.3,1578.0,4.65962947]
[1745302920963,6.33608125,1578.3,1578.0,4.65962947]
[1745302923300,6.33633253,1578.2,1578.1,5.338]
[1745302923682,6.33633253,1578.2,1578.1,5.53626496]
[1745302924026,12.67229736,1578.3,1578.1,5.53626496]
[1745302924199,6.33633253,1578.2,1578.1,5.53626496]
[1745302924374,6.33608125,1578.3,1578.1,5.53626496]
[1745302925288,12.67236543,1578.3,1578.1,5.53626496]
[1745302926000,6.33608125,1578.3,1578.1,5.53626496]
[1745302926210,12.67234367,1578.3,1578.1,5.53626496]
[1745302926695,6.33608125,1578.3,1578.1,5.53626496]
[1745302928075,12.67230557,1578.3,1578.1,5.53626496]
[1745302928272,0.33038387,1578.4,1578.2,0.7563]
[1745302928471,0.9354,1578.6,1578.5,0.7563]
[1745302928472,0.14,1578.6,1578.5,0.7563]
[1745302928672,0.47033414,1578.6,1578.5,19.34019857]
[1745302928872,0.47033414,1578.6,1578.5,19.82685782]
[1745302929083,0.14,1578.6,1578.5,19.82685782]
[1745302934615,0.14,1578.6,1578.5,23.47752383]
[1745302934823,0.14,1578.6,1578.5,19.82685782]
[1745302935311,0.14,1578.6,1578.5,23.94367512]
[1745302935689,0.14,1578.6,1578.5,20.29300911]
[1745302936219,0.3302644,1579.3,1579.2,0.8054]
[1745302936387,0.3302644,1579.3,1579.2,15.53603509]
[1745302936706,6.33074025,1579.6,1579.3,6.33191434]
[1745302936912,6.33074025,1579.6,1579.3,9.98257186]
[1745302937291,6.33074025,1579.6,1579.4,0.18184984]
[1745302938285,7.08991744,1579.5,1579.4,0.18184984]
[1745302938492,7.08991744,1579.5,1579.2,9.1404]
[1745302938679,7.08991744,1579.5,1579.3,0.18184984]
[1745302940519,17.55733333,1579.7,1579.3,10.16425269]
[1745302940815,6.33072555,1579.6,1579.3,10.16425269]
[1745302941017,7.08932329,1579.7,1579.3,10.16423085]
[1745302941183,7.08932329,1579.7,1579.3,10.16418549]
[1745302941385,13.41995272,1579.7,1579.3,10.16418549]
[1745302942125,12.66189008,1579.6,1579.3,3.83251585]
[1745302942322,6.33129726,1579.5,1579.3,0.18184984]
[1745302943623,12.66189304,1579.6,1579.3,0.18184984]
[1745302943923,6.33089401,1579.6,1579.3,0.18184984]
[1745302944726,6.33089401,1579.6,1579.3,3.83251585]
[1745302945524,7.08927712,1579.7,1579.3,10.16442518]
[1745302945688,6.33047712,1579.7,1579.4,0.8247]
[1745302946125,12.6611163,1579.7,1579.5,0.16707425]
[1745302946321,6.33047712,1579.7,1579.6,5.333]
[1745302947124,6.33047712,1579.7,1579.6,5.50007425]
[1745302949329,9.08316158,1579.7,1579.6,5.50007425]
[1745302950505,13.22048326,1579.7,1579.6,0.16707425]
[1745302950849,16.22048326,1579.7,1579.6,0.16707425]
[1745302951022,16.22048326,1579.7,1579.4,5.333]
[1745302951023,7.15171744,1579.5,1579.4,5.333]
[1745302951331,8.49997993,1579.5,1579.4,5.333]
[1745302952132,8.8301758,1579.5,1579.4,5.333]
[1745302957824,7.48191331,1579.5,1579.4,5.333]
[1745302960828,11.61923499,1579.5,1579.4,5.333]
[1745302964341,6.33247011,1579.2,1579.1,5.332]
[1745302964566,13.45872028,1579.3,1579.1,5.332]
[1745302964767,7.12651252,1579.3,1579.1,5.50295479]
[1745302964955,6.33232016,1579.2,1579.1,5.50295479]
[1745302965255,13.45872028,1579.3,1579.1,5.50295479]
[1745302966445,6.33211252,1579.3,1579.1,5.50295479]
[1745302968074,12.66441211,1579.3,1579.1,5.50295479]
[1745302968380,6.33232016,1579.2,1579.1,5.50295479]
[1745302969338,12.66441211,1579.3,1579.1,5.50295479]
[1745302970596,6.33232016,1579.2,1579.1,5.50295479]
[1745302971277,6.33232016,1579.2,1579.1,0.17095479]
[1745302971588,6.33272117,1579.1,1579.0,5.332]
[1745302972093,11.26444285,1579.1,1579.0,5.332]
[1745302972250,6.33383908,1578.9,1578.7,26.203]
[1745302972449,6.33392449,1578.8,1578.7,26.203]
[1745302972886,7.12821162,1578.9,1578.7,26.203]
[1745302973090,13.46202488,1578.9,1578.7,26.203]
[1745302973292,6.33392449,1578.8,1578.7,26.203]
[1745302974070,7.12811312,1578.9,1578.7,26.203]
[1745302974269,6.33392449,1578.8,1578.7,26.203]
[1745302974472,13.46197933,1578.9,1578.7,26.203]
[1745302974888,6.33392449,1578.8,1578.7,26.203]
[1745302976900,6.33392449,1578.8,1578.7,26.34651438]
[1745302981770,6.33371312,1578.9,1578.7,26.34651438]
[1745302982301,6.33371312,1578.9,1578.7,5.47551438]
[1745302982775,12.66754637,1578.9,1578.7,5.47551438]
[1745302982975,6.33371312,1578.9,1578.7,5.47551438]
[1745302984298,4.13732168,1579.0,1578.8,7.10053246]
[1745302984510,4.13732168,1579.0,1578.8,7.10051439]
[1745302984809,0.33014781,1579.1,1578.9,10.19089322]
[1745302984974,6.33218751,1579.3,1579.0,0.7668]
[1745302985170,6.33232929,1579.2,1579.1,5.334]
[1745302985598,6.33232929,1579.2,1579.1,5.47751438]
[1745302986692,7.59878097,1579.2,1579.1,5.47751438]
[1745302989126,8.40198097,1579.2,1579.1,5.47751438]
[1745302989321,12.53930265,1579.2,1579.1,0.14351438]
[1745302989476,6.33352333,1578.9,1578.8,5.332]
[1745302989676,6.33352333,1578.9,1578.8,5.47864254]
[1745302999046,5.49431122,1578.9,1578.8,5.47864254]
[1745303000621,5.82445214,1578.9,1578.8,5.47864254]
[1745303001950,5.82445214,1578.9,1578.8,6.26584254]
[1745303002149,0.33014092,1578.9,1578.8,12.6631052]
[1745303002356,0.33014092,1578.9,1578.8,15.59976703]
[1745303002717,6.33205405,1579.3,1579.0,0.7872]
[1745303003021,6.33205405,1579.3,1579.1,0.15289951]
[1745303003340,6.33205405,1579.3,1579.2,5.333]
[1745303003716,6.33205405,1579.3,1579.2,5.48589951]
[1745303006671,8.64532974,1579.3,1579.2,5.48589951]
[1745303009356,6.33205405,1579.3,1579.2,5.48589951]
[1745303018765,7.08825405,1579.3,1579.2,0.15289951]
[1745303018967,6.33352333,1578.9,1578.8,5.332]
[1745303026584,6.33352333,1578.9,1578.8,5.45954143]
[1745303027004,9.06825122,1578.9,1578.8,0.12754143]
[1745303027210,6.33512828,1578.5,1578.4,5.332]
[1745303030371,6.33593106,1578.3,1578.2,26.21]
[1745303031784,6.33571933,1578.4,1578.2,26.21]
[1745303031992,12.67153088,1578.4,1578.2,26.21]
[1745303032790,6.33571933,1578.4,1578.2,26.21]
[1745303033196,12.67163821,1578.4,1578.2,26.21]
[1745303033383,6.33571933,1578.4,1578.2,26.21]
[1745303035274,6.33593106,1578.3,1578.2,26.21]
[1745303036196,6.33571933,1578.4,1578.2,26.21]
[1745303040627,6.33571933,1578.4,1578.2,5.332]
[1745303041311,6.33673404,1578.1,1578.0,0.8221]
[1745303041473,6.33673404,1578.1,1578.0,5.333]
[1745303041668,6.33673404,1578.1,1578.0,5.45418178]
[1745303048175,14.93062173,1578.1,1578.0,1e-08]
[1745303048396,6.33874239,1577.6,1577.5,5.334]
[1745303049110,6.33853427,1577.7,1577.5,5.334]
[1745303050127,10.47547994,1577.8,1577.5,5.334]
[1745303051310,6.33857638,1577.7,1577.5,5.334]
[1745303051610,6.33834607,1577.7,1577.5,5.334]
[1745303052317,6.33834607,1577.7,1577.6,0.8148]
[1745303053179,12.67698008,1577.7,1577.5,5.334]
[1745303054522,6.33834607,1577.7,1577.5,5.334]
[1745303054914,12.67695834,1577.7,1577.5,5.334]
[1745303056524,6.33874239,1577.6,1577.5,5.334]
[1745303057221,13.94467381,1577.7,1577.5,5.334]
[1745303057425,6.33874239,1577.6,1577.5,5.334]
[1745303065220,0.33028295,1577.7,1577.5,6.1037]
[1745303065539,0.33028295,1577.7,1577.6,10.17182984]
[1745303065743,6.33730204,1578.0,1577.7,6.33830963]
[1745303065919,6.33730204,1578.0,1577.8,0.7697]
[1745303066114,4.46760777,1578.1,1577.9,5.335]
[1745303066319,17.14171983,1578.1,1577.9,5.335]
[1745303066521,10.80460274,1578.1,1577.9,5.335]
[1745303067922,6.33713561,1578.0,1577.9,5.335]
[1745303079202,8.27126958,1578.0,1577.9,5.335]
[1745303079390,9.05016958,1578.0,1577.9,5.335]
[1745303081007,13.18749126,1578.0,1577.9,5.335]
[1745303087495,12.40859126,1578.0,1577.9,5.335]
[1745303092804,8.27126958,1578.0,1577.9,5.335]
[1745303097258,6.33954608,1577.4,1577.3,0.8081]
[1745303097419,6.33954608,1577.4,1577.2,27.0331]
[1745303097420,6.33994801,1577.3,1577.2,27.0331]
[1745303097618,6.33994801,1577.3,1577.2,26.225]
[1745303102561,6.33929685,1577.5,1577.3,0.8081]
[1745303103759,12.678819,1577.5,1577.3,0.8081]
[1745303103958,12.678819,1577.5,1577.3,0.79088543]
[1745303104330,6.33954608,1577.4,1577.3,0.79088543]
[1745303105646,6.33929685,1577.5,1577.3,0.79088543]
[1745303107054,6.33898674,1577.6,1577.3,0.79088543]
[1745303107247,5.76174864,1577.9,1577.4,3.65066601]
[1745303107440,6.33780682,1577.9,1577.6,3.65066601]
[1745303107643,6.33780682,1577.9,1577.8,0.7962]
[1745303108028,6.3379389,1577.8,1577.7,5.334]
[1745303108929,6.33772792,1577.9,1577.7,5.334]
[1745303114594,12.674744,1578.0,1577.7,5.334]
[1745303114747,7.13424292,1578.1,1577.7,11.67213013]
[1745303114954,12.67399417,1578.1,1577.8,4.43706601]
[1745303115195,6.33714357,1578.0,1577.8,4.43706601]
[1745303115410,12.67397694,1578.1,1577.8,4.43706601]
[1745303115588,6.33714207,1578.0,1577.8,4.43706601]
[1745303116992,6.33694292,1578.1,1577.8,4.43706601]
[1745303118489,12.67395673,1578.1,1577.8,4.43706601]
[1745303118785,6.33694292,1578.1,1577.8,4.43706601]
[1745303120193,6.33694292,1578.1,1577.8,10.7749052]
[1745303120393,6.33694292,1578.1,1577.8,4.43706601]
[1745303121080,6.33658318,1578.2,1577.8,10.77494291]
[1745303121460,6.33674503,1578.1,1577.8,4.43706601]
[1745303122180,6.33674503,1578.1,1577.8,10.77487442]
[1745303122378,7.15874503,1578.1,1577.8,3.0]
[1745303122582,6.33753494,1578.0,1577.8,3.0]
[1745303123200,7.15894825,1578.1,1577.8,3.0]
[1745303123489,6.33694825,1578.1,1577.8,3.0]
[1745303124255,6.33694825,1578.1,1577.9,5.332]
[1745303124461,6.33713561,1578.0,1577.9,5.332]
[1745303129421,14.02352042,1578.1,1577.9,5.332]
[1745303129730,7.68649885,1578.1,1577.9,5.332]
[1745303129931,14.023527,1578.1,1577.9,5.332]
[1745303130226,14.02351739,1578.1,1577.9,5.332]
[1745303130429,7.68649885,1578.1,1577.9,5.332]
[1745303132032,1.3495506,1578.1,1577.9,6.1363]
[1745303132234,12.67324318,1578.2,1577.9,6.1363]
[1745303132625,6.33679712,1578.1,1577.9,6.1363]
[1745303132796,12.67319065,1578.2,1577.9,6.1363]
[1745303133198,10.47342664,1578.3,1577.9,12.47355796]
[1745303133434,6.3363503,1578.2,1577.9,6.1363]
[1745303134113,6.3363503,1578.2,1577.9,12.47380195]
[1745303135179,6.3363503,1578.2,1577.9,12.53717074]
[1745303135350,10.47272196,1578.5,1578.1,0.8043]
[1745303135652,1.0472722,1578.4,1578.1,10.79159014]
[1745303135820,10.47272196,1578.5,1578.1,10.79159014]
[1745303136018,6.33566254,1578.4,1578.1,4.45496601]
[1745303136325,6.33566254,1578.4,1578.1,3.8043]
[1745303136326,6.33598045,1578.3,1578.1,3.8043]
[1745303136528,12.67150023,1578.4,1578.1,3.8043]
[1745303136728,6.33566254,1578.4,1578.1,3.8043]
[1745303137236,6.33613159,1578.3,1578.1,3.8043]
[1745303137861,8.01649738,1578.4,1578.1,3.8043]
[1745303139224,6.33566254,1578.4,1578.1,3.8043]
[1745303141456,12.67158183,1578.4,1578.1,3.8043]
[1745303141655,6.33566254,1578.4,1578.1,3.8043]
[1745303142664,12.67149675,1578.4,1578.1,3.8043]
[1745303143465,6.33566254,1578.4,1578.1,3.8043]
[1745303144666,12.67147577,1578.4,1578.1,3.8043]
[1745303144854,6.33566254,1578.4,1578.1,3.8043]
[1745303145864,12.67158257,1578.4,1578.1,3.8043]
[1745303146368,6.33566254,1578.4,1578.1,3.8043]
[1745303150686,12.67149717,1578.4,1578.1,3.8043]
[1745303150857,11.25487088,1578.6,1578.1,3.8043]
[1745303150858,6.33534757,1578.5,1578.1,3.8043]
[1745303151057,12.67085947,1578.5,1578.1,10.14090779]
[1745303151258,6.33558941,1578.4,1578.1,10.14090779]
[1745303152092,6.33558941,1578.4,1578.1,3.8043]
[1745303152657,6.33534757,1578.5,1578.2,0.8103]
[1745303152990,12.67075292,1578.5,1578.3,5.33]
[1745303153199,14.35156038,1578.5,1578.3,5.33]
[1745303153406,8.01615503,1578.5,1578.3,5.33]
[1745303154666,14.35157374,1578.5,1578.3,5.33]
[1745303154870,8.01615503,1578.5,1578.3,5.33]
[1745303155194,14.35156103,1578.5,1578.3,5.33]
[1745303155392,8.01615503,1578.5,1578.3,5.33]
[1745303156497,14.35165734,1578.5,1578.3,5.33]
[1745303156897,6.33534757,1578.5,1578.3,5.33]
[1745303157187,13.4502782,1578.6,1578.3,5.33]
[1745303157392,6.33514118,1578.5,1578.3,5.33]
[1745303158794,6.33552965,1578.4,1578.3,5.33]
[1745303160191,6.33514118,1578.5,1578.3,5.33]
[1745303161467,12.6699688,1578.6,1578.3,5.33]
[1745303162498,0.33028248,1578.7,1578.5,1.60428033]
[1745303162805,0.33028248,1578.7,1578.6,0.776]
[1745303163011,6.33393117,1578.8,1578.6,0.776]
[1745303164396,7.6007034,1578.8,1578.4,3.48224795]
[1745303164633,6.33482666,1578.6,1578.4,3.776]
[1745303165605,6.33512828,1578.5,1578.4,3.0]
[1745303166092,6.33512828,1578.5,1578.3,5.33]
[1745303166093,12.67060055,1578.5,1578.3,5.33]
[1745303166314,6.33512828,1578.5,1578.3,5.33]
[1745303166623,6.33512832,1578.5,1578.3,5.33]
[1745303167328,4.13732168,1578.7,1578.3,11.66580741]
[1745303167329,10.471861,1578.7,1578.3,11.66580741]
[1745303167705,10.471861,1578.7,1578.4,0.776]
[1745303167906,16.80648597,1578.7,1578.4,0.776]
[1745303168098,10.471861,1578.7,1578.4,0.776]
[1745303170815,10.471861,1578.7,1578.4,1.25026721]
[1745303171626,6.33322217,1579.0,1578.6,7.1386449]
[1745303171627,6.33327623,1579.0,1578.6,7.1386449]
[1745303171826,6.33327623,1579.0,1578.7,5.329]
[1745303172031,6.33327623,1579.0,1578.8,0.8041]
[1745303172529,10.46938098,1579.3,1578.9,6.3333706]
[1745303172530,10.46944435,1579.3,1578.9,6.3333706]
[1745303172730,10.46944435,1579.3,1579.0,0.8041]
[1745303172902,10.46944435,1579.3,1579.1,5.329]
[1745303173809,6.33232016,1579.2,1579.1,5.329]
[1745303178135,6.33212267,1579.3,1579.1,5.329]
[1745303178634,12.66440395,1579.3,1579.1,5.329]
[1745303179000,6.33232016,1579.2,1579.1,5.329]
[1745303181939,11.26675138,1579.6,1579.2,7.13632424]
[1745303182127,6.33116147,1579.5,1579.2,4.45299783]
[1745303182325,6.33116147,1579.5,1579.2,10.7853033]
[1745303182630,6.33116147,1579.5,1579.2,4.45299783]
[1745303183154,6.3309297,1579.6,1579.2,10.78520488]
[1745303183955,6.3309297,1579.6,1579.2,10.78504224]
[1745303184455,6.3309297,1579.6,1579.2,17.11709057]
[1745303184619,7.12906378,1579.7,1579.3,6.33180773]
[1745303184818,6.33091082,1579.6,1579.4,0.7851]
[1745303188258,6.33056378,1579.7,1579.4,0.7851]
[1745303188457,6.33056378,1579.7,1579.4,1.26252967]
[1745303188625,6.33093026,1579.6,1579.4,1.26252967]
[1745303188826,6.33050144,1579.7,1579.4,1.26252967]
[1745303189850,6.33072994,1579.6,1579.4,1.26252967]
[1745303190459,6.33050144,1579.7,1579.5,5.325]
[1745303190627,12.66112754,1579.7,1579.5,5.325]
[1745303191064,12.66121454,1579.7,1579.5,5.325]
[1745303191760,6.33050144,1579.7,1579.5,5.325]
[1745303192239,12.66113209,1579.7,1579.5,5.325]
[1745303192960,6.33050144,1579.7,1579.5,5.325]
[1745303193342,12.66113742,1579.7,1579.5,5.325]
[1745303193541,6.33050144,1579.7,1579.5,5.325]
[1745303194462,12.66111992,1579.7,1579.5,5.325]
[1745303194677,6.33050144,1579.7,1579.5,5.325]
[1745303196068,6.33071663,1579.6,1579.5,5.325]
[1745303199169,6.33050144,1579.7,1579.5,5.325]
[1745303202398,12.6611538,1579.7,1579.5,5.325]
[1745303202607,12.66111713,1579.7,1579.5,5.325]
[1745303202900,7.67850315,1579.7,1579.5,5.325]
[1745303203067,6.33071663,1579.6,1579.5,5.325]
[1745303203264,6.33151829,1579.4,1579.2,6.0963]
[1745303203492,6.3319192,1579.3,1579.2,8.324]
[1745303203662,6.33151829,1579.4,1579.2,8.324]
[1745303203868,6.33129945,1579.5,1579.2,8.324]
[1745303204091,7.67933005,1579.5,1579.2,8.324]
[1745303205298,6.3316503,1579.4,1579.2,8.324]
[1745303205471,14.01074856,1579.5,1579.2,8.324]
[1745303205794,6.33165605,1579.4,1579.2,8.324]
[1745303208702,7.67933005,1579.5,1579.2,8.324]
[1745303209583,7.67933005,1579.5,1579.2,14.65629565]
[1745303209812,6.33117194,1579.5,1579.2,14.65629565]
[1745303210114,11.28634838,1579.6,1579.2,14.65629565]
[1745303210520,6.33138962,1579.5,1579.2,8.324]
[1745303210937,6.33138962,1579.5,1579.2,14.65631886]
[1745303211527,6.33138962,1579.5,1579.2,8.324]
[1745303211831,11.28633695,1579.6,1579.2,8.324]
[1745303211832,4.13732168,1579.6,1579.3,7.12847971]
[1745303212200,4.13732168,1579.6,1579.3,7.19179112]
[1745303212704,10.46806075,1579.6,1579.3,7.19179112]
[1745303212909,4.13732168,1579.6,1579.3,7.12838763]
[1745303213123,6.33040633,1579.7,1579.3,7.12838763]
[1745303213634,6.33040633,1579.7,1579.4,6.33135924]
[1745303213840,6.33040633,1579.7,1579.4,6.33151165]
[1745303214123,6.33040633,1579.7,1579.3,7.12837256]
[1745303214438,6.33040633,1579.7,1579.3,10.77727039]
[1745303214630,12.66099669,1579.7,1579.3,10.77727039]
[1745303214839,6.33085228,1579.6,1579.3,4.44559783]
[1745303215332,6.33144348,1579.5,1579.3,0.7967]
[1745303215536,6.33144348,1579.5,1579.2,9.1109]
[1745303215537,6.33151829,1579.4,1579.2,9.1109]
[1745303222347,12.66284835,1579.5,1579.3,5.323]
[1745303223955,12.66283841,1579.5,1579.3,5.323]
[1745303225456,6.33140487,1579.5,1579.3,5.323]
[1745303225654,12.66289107,1579.5,1579.3,5.323]
[1745303225850,6.33151829,1579.4,1579.3,5.323]
[1745303226154,7.16161829,1579.4,1579.3,5.323]
[1745303236565,6.33151829,1579.4,1579.3,5.323]
[1745303238067,7.09011829,1579.4,1579.3,5.323]
[1745303241667,6.3328545,1579.1,1579.0,5.322]
[1745303244151,6.33352333,1578.9,1578.8,20.878]
[1745303244655,7.11652449,1578.8,1578.7,5.322]
[1745303246368,6.3353942,1578.5,1578.4,5.322]
[1745303249720,6.33633253,1578.2,1578.1,26.196]
[1745303251207,6.33770816,1577.9,1577.7,0.802]
[1745303251370,6.33770816,1577.9,1577.8,5.324]
[1745303256096,7.60520817,1577.9,1577.8,5.324]
[1745303257771,12.52512985,1577.9,1577.8,5.324]
[1745303257966,6.33874239,1577.6,1577.5,6.127]
[1745303258172,6.33874239,1577.6,1577.4,20.88]
[1745303258173,6.33914421,1577.5,1577.4,20.88]
[1745303258526,6.33874239,1577.6,1577.4,26.205]
[1745303258679,12.67786237,1577.6,1577.4,26.205]
[1745303259078,6.33874239,1577.6,1577.4,26.205]
[1745303259991,6.33855935,1577.7,1577.4,26.205]
[1745303260393,6.33888416,1577.6,1577.4,26.205]
[1745303262204,6.33855935,1577.7,1577.4,26.205]
[1745303262415,6.33855935,1577.7,1577.4,32.5444771]
[1745303263009,6.3381784,1577.8,1577.5,0.7549]
[1745303264711,6.3381784,1577.8,1577.5,7.09401203]
[1745303265793,11.74256864,1577.9,1577.5,10.74290986]
[1745303265994,4.13732168,1578.2,1577.6,3.7549]
[1745303266187,16.80967625,1578.3,1578.0,0.7549]
[1745303266387,6.33641186,1578.2,1578.0,0.7549]
[1745303266799,6.33614402,1578.3,1578.0,7.092033]
[1745303267193,6.33614402,1578.3,1578.0,0.7549]
[1745303267398,12.67150061,1578.4,1578.0,7.09186629]
[1745303267608,14.35238284,1578.4,1578.0,7.09186629]
[1745303267911,6.33607163,1578.3,1578.0,0.7549]
[1745303268294,8.01657235,1578.4,1578.0,7.09175947]
[1745303268496,14.35241843,1578.4,1578.0,7.09175947]
[1745303268689,14.35242795,1578.4,1578.0,7.09175947]
[1745303268906,6.33599992,1578.3,1578.0,7.09175947]
[1745303269415,6.33533971,1578.5,1578.0,7.09175947]
[1745303269615,13.37942739,1578.5,1578.1,6.33659806]
[1745303270125,6.33553626,1578.4,1578.1,6.33659806]
[1745303270287,6.33553626,1578.4,1578.0,7.09175947]
[1745303270493,6.33553626,1578.4,1578.0,13.42866016]
[1745303270825,6.33553626,1578.4,1578.0,7.09175947]
[1745303271125,12.67145776,1578.4,1578.0,7.09175947]
[1745303271321,6.33553626,1578.4,1578.0,7.09175947]
[1745303271513,6.33553626,1578.4,1578.0,13.42862877]
[1745303273729,6.33553626,1578.4,1578.0,13.42865919]
[1745303274712,6.33553626,1578.4,1578.0,13.91242449]
[1745303276933,6.33553626,1578.4,1578.0,7.57552477]